Cogmind - Beta 16.1 @@@ ROGUE MODE // 2026.04.12 @ 00:18:09 Player: Ammie Result: Destroyed by as-23629 with Assembled Maul Performance ------------- Evolutions (0) 0 Regions Visited (2) 400 Robots Destroyed (18) 90 Value Destroyed (355) 355 Prototype IDs (0) 0 Alien Tech Used (0) 0 Bonus (0) 0 TOTAL SCORE: 845 Bonus ------- None Cogmind --------- Core Integrity 0/250 Matter 255/300 Energy 125/125 System Corruption 0% Temperature Cool (18) Movement Treading (160) Location -10/Mines Parts ------- > --- POWER (1) -------- Light Ion Engine > --- PROPULSION (2) --- Improved Treads Improved Treads > --- UTILITY (2) ------ Small Storage Unit Light Armor Plating > --- WEAPON (2) ------- Light Cannon Light Cannon > --- INVENTORY (8) ---- Ion Engine Light Ion Engine Improved Treads Improved Treads Heat Sink Medium Matter Pod (0) Targeting Computer Light Assault Rifle Peak State ------------ > --- POWER ------------ Light Ion Engine > --- PROPULSION ------- Improved Treads Improved Treads > --- UTILITY ---------- Small Storage Unit Light Armor Plating > --- WEAPON ----------- Light Cannon Light Cannon > --- INVENTORY -------- Ion Engine Light Ion Engine Improved Treads Improved Treads Aluminum Leg Heat Sink Targeting Computer Light Assault Rifle [Rating: 10] Favorites ----------- Power Light Ion Engine Engine Light Ion Engine Propulsion Aluminum Leg Treads Improved Treads Leg Aluminum Leg Utility Small Storage Unit Storage Small Storage Unit Protection Light Armor Plating Weapon Light Assault Rifle Energy Gun Medium Laser Ballistic Gun Light Assault Rifle Ballistic Cannon Light Cannon Build | -11 -10 -10 ------- Run | Yrd Mat Min Slots Evolved . | . . . Power . | . . . Propulsion . | . . . Utility . | . . . Weapon . | . . . Parts Attached 23 | 6 17 . Power 4 | 1 3 . Engine 4 | 1 3 . Core . | . . . Reactor . | . . . Propulsion 8 | 2 6 . Treads 2 | . 2 . Leg 6 | 2 4 . Wheel . | . . . Hover . | . . . Flight . | . . . Utility 3 | 1 2 . Device . | . . . Storage 2 | 1 1 . Processor . | . . . Hackware . | . . . Protection 1 | . 1 . Artifact . | . . . Weapon 8 | 2 6 . Energy Gun 2 | 2 . . Energy Cannon . | . . . Ballistic Gun 4 | . 4 . Ballistic Cannon 2 | . 2 . Launcher . | . . . Special Weapon . | . . . Impact Weapon . | . . . Slashing Weapon . | . . . Piercing Weapon . | . . . Special Melee Weapon . | . . . Unidentified Prototypes . | . . . Parts Lost 5 | . 5 . Power 2 | . 2 . Propulsion . | . . . Utility 1 | . 1 . Weapon 2 | . 2 . Highest Loss Streak 3 | . 3 . To Critical Strikes . | . . . Average Backups 5 | 1 5 8 Power 1 | . 1 2 Propulsion 2 | . 2 2 Utility . | . . 3 Weapon . | . . 1 Tool/Special . | . . . Unused Backups 8 | . 2 6 Power 2 | . . 2 Propulsion 4 | . 2 2 Utility 2 | . . 2 Weapon . | . . . Tool/Special . | . . . Average Slot Usage (%) 93 | . 92 100 Engine 13 | . 13 14 Treads 6 | . 4 28 Leg 21 | . 23 . Storage 18 | . 18 14 Protection 6 | . 5 14 Energy Gun 3 | . 3 . Ballistic Gun 12 | . 13 . Ballistic Cannon 9 | . 7 28 Peak Build Rating 10 | 6 10 10 Average Rating 6 | 4 6 10 On Entrance 5 | . 6 10 Avg Prop Armor Cover (%) . | . . . Naked Turns . | . . . Heaviest Build 17 | 12 17 17 Greatest Support 46 | 20 46 46 Greatest Overweight (x) . | . . . Average Overweight (x) . | . . . Largest Inventory Capacity 8 | 8 8 8 Average Capacity 7 | 6 8 8 Most Carried 8 | 2 8 8 Average Carried 5 | 1 6 8 Final Capacity 8 | 8 8 8 Final Carried 8 | 2 8 8 Class Distribution -------------------- 72% | Mutant 27% | Scavenger-Mutant Dominant Class ---------------- Mutant | -10/Materials Mutant | -10/Mines Resources | -11 -10 -10 ----------- Run | Yrd Mat Min Matter Collected 478 | 151 327 . Remotely . | . . . Salvage Created 482 | . 482 . Parts 36 | . 36 . Haulers Intercepted 1 | . 1 . Recyclers Shooed 1 | . 1 . Parts Field Recycled . | . . . Retrieved Matter . | . . . Parts Self-Destructed . | . . . Prevented . | . . . Parts Restored . | . . . Kills | -11 -10 -10 ------- Run | Yrd Mat Min Combat Hostiles Destroyed 16 | . 16 . Guns 15 | . 15 . Cannons 1 | . 1 . Classes Destroyed 4 | . 4 . Builder 1 | . 1 . Hauler 1 | . 1 . Swarmer 9 | . 9 . Grunt 7 | . 7 . Best Kill Streak 5 | . 5 . Combat Bots Only 5 | . 5 . Max Kills in Single Turn 2 | . 2 . Gunslinging 1 | . 1 . Exploded . | . . . Melee . | . . . Uniques/NPCs Destroyed . | . . . Combat | -11 -10 -10 -------- Run | Yrd Mat Min Hostile Shots Fired 124 | . 112 12 Missed 33 | . 30 3 Hits 91 | . 82 9 Melee 3 | . . 3 Projectile 88 | . 82 6 Part Disruptions 1 | . . 1 Damage Taken 891 | . 742 149 Core 268 | . 214 54 Absorbed by Shields . | . . . Core Remaining (%) 100 | 100 . . Volleys Fired 79 | . 77 2 Largest 2 | . 2 2 Hottest 90 | . 90 60 Shots Fired 123 | . 120 3 Gun 114 | . 114 . Cannon 9 | . 6 3 Launcher . | . . . Special . | . . . Kinetic 91 | . 88 3 Thermal 22 | . 22 . Explosive . | . . . Electromagnetic 10 | . 10 . Robot Hit Streak 7 | . 7 1 Robot Miss Streak 5 | . 5 3 Penetration Max . | . . . Secondary Targets 4 | . 4 . Max Gunslinging Chain 1 | . 1 . Shots Hit Robots 69 | . 68 1 Core Hits 32 | . 32 . Critical Kills . | . . . Critical Parts Destroyed 1 | . 1 . Critical Strikes 3 | . 3 . Burn 2 | . 2 . Destroy 1 | . 1 . Melee Attacks . | . . . Impact . | . . . Slashing . | . . . Piercing . | . . . Sneak Attacks . | . . . Combat Hostiles . | . . . Follow-up Attacks . | . . . Damage Inflicted 732 | . 713 19 Guns 635 | . 635 . Cannons 71 | . 52 19 Explosions 26 | . 26 . Melee . | . . . Ramming . | . . . Kinetic 465 | . 446 19 Thermal 174 | . 174 . Explosive . | . . . Electromagnetic 93 | . 93 . Impact . | . . . Slashing . | . . . Piercing . | . . . Highest Corruption . | . . . Average Corruption . | . . . Corruption Purged . | . . . Corruption Blocked . | . . . Overload Shots . | . . . Overflow Damage . | . . . Projectiles . | . . . Explosions . | . . . Melee . | . . . Knockbacks 2 | . 2 . Impact . | . . . Kinetic 2 | . 2 . Secondary . | . . . Self-Inflicted Damage . | . . . Shots . | . . . Rammed . | . . . Targets Rammed . | . . . Kicked . | . . . Crushed . | . . . Highest Temperature 240 | . 240 18 Average Temperature 80 | . 83 10 Received Heat Transfer 214 | . 174 40 Siege Activations . | . . . Martial Activations . | . . . Shielding Activations . | . . . Robots Disrupted . | . . . Combat Hostiles . | . . . Robots Corrupted . | . . . Combat Hostiles . | . . . Parts Fried . | . . . Impact Corruptions . | . . . Robots Melted . | . . . Combat Hostiles . | . . . Parts Melted 1 | . 1 . Heat Transferred 642 | . 642 . Parts Sabotaged . | . . . Parts Stolen . | . . . Parts Stripped . | . . . Power Chain Reactions 1 | . 1 . Alert | -11 -10 -10 ------- Run | Yrd Mat Min Maximum Alert Level . | . . . Low Security (%) 100 | 100 100 100 Level 1 . | . . . Level 2 . | . . . Level 3 . | . . . Level 4 . | . . . Level 5 . | . . . High Security . | . . . Max Security . | . . . Peak Influence 154 | . 154 7 Initial 7 | . . 7 Average 72 | . 85 1 Influence Increases 452 | . 452 . Destroy 0b10 Robot/C 320 | . 320 . Destroy 0b10 Robot/NC 10 | . 10 . Destroy Leader 62 | . 62 . Disable Machine 30 | . 30 . Lose Combat Pursuer 30 | . 30 . Influence Decreases 452 | . 432 20 Entered New Map 13 | . . 13 Time Decay 389 | . 382 7 Lost Part 50 | . 50 . Squads Dispatched 3 | . 3 . Investigation 2 | . 2 . Extermination . | . . . Reinforcement 1 | . 1 . Assault . | . . . Garrison . | . . . Intercept . | . . . Searches Triggered . | . . . Construction Impeded . | . . . Haulers Reinforced . | . . . Active Scanning Responses . | . . . Cargo Convoy Interrupts . | . . . Stealth | -11 -10 -10 --------- Run | Yrd Mat Min Distress Signals 3 | . 3 . Communications Jammed . | . . . Distress Signals . | . . . Times Spotted 45 | . 32 13 Peak Tracking Total 12 | . 8 12 Tactical Retreats 2 | . 1 1 Traps | -11 -10 -10 ------- Run | Yrd Mat Min Traps Triggered 2 | . 2 . Indirectly . | . . . Trap Hack Attempts . | . . . Triggered . | . . . Disarmed . | . . . Reprogrammed . | . . . Reused . | . . . Traps Extracted . | . . . Installed . | . . . Triggered . | . . . Machines | -11 -10 -10 ---------- Run | Yrd Mat Min Machines Disabled 2 | . 2 . Max in Single Turn 1 | . 1 . Machines Repaired . | . . . Machines Dismantled . | . . . Machines Sabotaged . | . . . Overloaded Fab Kills . | . . . Hacking | -11 -10 -10 --------- Run | Yrd Mat Min Machines Accessed 1 | . 1 . Terminals 1 | . 1 . Fabricators . | . . . Repair Stations . | . . . Recycling Units . | . . . Scanalyzers . | . . . Garrison Access . | . . . Total Hacks 3 | . 3 . Successful . | . . . Failed 3 | . 3 . Catastrophic . | . . . Database Lockouts . | . . . Manual 3 | . 3 . Terminals 3 | . 3 . Fabricators . | . . . Repair Stations . | . . . Recycling Units . | . . . Scanalyzers . | . . . Garrison Access . | . . . Terminal Hacks . | . . . Fabricator Hacks . | . . . Repair Station Hacks . | . . . Recycling Unit Hacks . | . . . Scanalyzer . | . . . Garrison Access Hacks . | . . . Unauthorized Hacks . | . . . Terminals . | . . . Fabricators . | . . . Repair Stations . | . . . Recycling Units . | . . . Scanalyzers . | . . . Garrison Access . | . . . Data Cores Recovered . | . . . Used . | . . . Hacking Detections 1 | . 1 . Full Trace Events . | . . . Feedback Events . | . . . Feedback Blocked . | . . . Robot Schematics Acquired . | . . . Robots Built . | . . . Authchips . | . . . Time . | . . . Total Robot Build Rating . | . . . Part Schematics Acquired . | . . . Parts Built . | . . . Authchips . | . . . Time . | . . . Total Part Build Rating . | . . . Part Studies Acquired . | . . . Parts Repaired . | . . . Time . | . . . Parts Recycled . | . . . Recycled Matter . | . . . Retrieved Matter . | . . . Retrieved Components . | . . . Parts Scanalyzed . | . . . Part Schematics Acquired . | . . . Parts Damaged . | . . . Bothacking | -11 -10 -10 ------------ Run | Yrd Mat Min Used RIF Installer . | . . . Robots Hacked . | . . . Non-combat . | . . . Combat . | . . . Robot Hacks Applied . | . . . Relay Couplers Released . | . . . Fabnet Peak Effective % . | . . . Robots Rewired . | . . . Allies Hacked . | . . . Hacks Repelled . | . . . Allies | -11 -10 -10 -------- Run | Yrd Mat Min Total Allies . | . . . Largest Group . | . . . Highest-Rated Group . | . . . Highest-Rated Ally . | . . . Total Orders . | . . . Ally Attacks . | . . . Total Damage . | . . . Kills . | . . . Allies Corrupted . | . . . Allies Melted . | . . . Intel | -11 -10 -10 ------- Run | Yrd Mat Min Active Infowar (turns) . | . . . Robot Analysis Total . | . . . Derelict Logs Recovered . | . . . Drone Launches . | . . . Drone Recoveries . | . . . Exploration | -11 -10 -10 ------------- Run | Yrd Mat Min Turns Passed 1087 | 72 922 93 Spaces Moved 642 | 56 531 55 Core 8 | 8 . . Treads 134 | . 79 55 Legs 500 | 48 452 . Wheels . | . . . Hover . | . . . Flight . | . . . Fastest Speed 50 | 50 120 160 Average Speed 127 | 110 125 160 Slowest Speed 160 | 120 160 160 Overloaded Moves . | . . . Propulsion Burnouts . | . . . Robots Hopped . | . . . Potential Cave-ins . | . . . Cave-ins Triggered . | . . . Exploration Rate (%) 31 | 4 77 14 Regions Visited 2 Branch Regions 1 Pre-discovered Areas . | . . . Known Exits Taken . | . . . Unknown Exits Taken 2 | 1 1 . Scrap Searched . | . . . Spaces Dug . | . . . Terrain Destroyed . | . . . Melee . | . . . Projectile . | . . . AOE . | . . . Terrain Rammed . | . . . Walls Destroyed . | . . . Machines Disabled . | . . . Actions | -11 -10 -10 --------- Run | Yrd Mat Min Total 799 | 63 679 57 Wait 38 | . 38 . Move 640 | 55 530 55 Hop . | . . . Pick Up 11 | 2 9 . Fast Attach 10 | 6 4 . Attach 2 | . 2 . Detach . | . . . Swap 11 | . 11 . Drop 8 | . 8 . Fire 79 | . 77 2 Melee . | . . . Ram . | . . . Kick . | . . . Crush . | . . . Escape Stasis . | . . . Rewire . | . . . Trap . | . . . Miscellaneous . | . . . Route ------- -11/Scrapyard -10/Materials (discovered 4 exits: [*Mat x2] / [*Min x2]) -10/Mines History --------- Turn | Location | Event 5 | -11/Scrapyard | Discovered new exit (range 16) 73 | -11/Scrapyard | Entered Materials 247 | -10/Materials | Lost 3 parts (1p2w) 283 | -10/Materials | Discovered new exit (range 15) 302 | -10/Materials | Build established: Mutant 374 | -10/Materials | Core integrity fell below 50% 405 | -10/Materials | Discovered new exit (range 15) 470 | -10/Materials | Core integrity fell below 20% 484 | -10/Materials | Discovered new exit (range 16) 611 | -10/Materials | Discovered new exit (range 9) 995 | -10/Materials | Entered Mines 1016 | -10/Mines | Met a Derelict bent on vengeance 1052 | -10/Mines | Assembled infested the area 1057 | -10/Mines | Assisted by a Guerilla fighting off Assembled 1088 | -10/Mines | Destroyed by as-23629 with Assembled Maul Last Messages --------------- 00827_ Acquired 2 matter. 00859_ Acquired Imp. Treads. 00866_ Dropped Aluminum Leg. 00867_ Acquired Imp. Treads. 00886_ Dropped Aluminum Leg. 00915_ K-01 Serf collects debris. 00931_ Acquired 1 matter. 00944_ Acquired 50 matter. 00991_ Acquired Med. Matter Pod. LOCATION=UNKNOWN GOAL=ESCAPE 00996_ A derelict wanders into view. 01016_ 22-6LT(g): "I WILL HAVE VENGEANCE!" 01046_ K-01 Serf collects debris. 01052_ ALERT: Infestation in the mines, dispatching Demolisher response squad. 01057_ A derelict emerges from the shadows: "You need to get out of here! I've been tracking a group of Assembled to figure out where they're coming from, and they're closing on this area, come on!" 01065_ K-01 Serf collects debris. Map ----- +----------------------------------------------------+ | ????????????????????????????????????????# ???? | | ???????????????????????????????????????## ???? | | ???????????????????????????? ?????????## #???? | | ???????????????????????????? ##??????# #???? | | ???????????????????????????? #????# ##??? | | ?????????????????????????????# ????# #??? | | ??????????????????????????????# ???# #??? | | ???????????????????????????????# ???## ##??? | | ????????????????????????????????# #??### #???? | | ????????????????????????????????# #?# #???? | | ?????????????????????????????????# ## #???? | | ?????????????????????????????????# ###???? | | ?????????????????????????????????# #?????? | | ?????????????????????????????????## #?????? | | ??????????????????????????????????## #?????? | | ???????????????????????????????????## ##?????? | | ????????????????????????????????????# #??????? | | ????????????????????????????????????# #??????? | | ????????????# ??????#########????## #??????? | | ?????????????# #### ## ##??## ##??????? | | ????????????????# = #### ##???????? | | ????????????????# #### a a ## ##????????? | | ??????????????????????## a g ##?????????? | | ???????????????????????## ##??????????? | | ????????????????????????#aa """ ##???????????? | | ??????????????# #####@ """ ##????????????? | | ??????????????# # a """ #?????????????? | | ??????????????# ## ##?????????????? | | ??????????????# # ?????## ####??????????????? | | ????????????????????????## ##?????????????????? | | ?????????????????????????####??????????????????? | | ???????????????????????????????????????????????? | | ???????????????????????????????????????????????? | | ???????????????????????????????????????????????? | | ???????????????????????????????????????????????? | | ???????????????????????????????????????????????? | | ???????????????????????????????????????????????? | | ???????????????????????????????????????????????? | | ???????????????????????????????????????????????? | | ???????????????????????????????????????????????? | | ???????????????????????????????????????????????? | | ???????????????????????????????????????????????? | | ???????????????????????????????????????????????? | | ???????????????????????????????????????????????? | | ???????????????????????????????????????????????? | | ???????????????????????????????????????????????? | | ???????????????????????????????????????????????? | | ???????????????????????????????????????????????? | | ???????????????????????????????????????????????? | | ???????????????????????????????????????????????? | +----------------------------------------------------+ Best States ------------- Heat Dissipation 25 Energy Generation 10 Energy Capacity 225 Matter Stores 300 Matter Capacity 300 Sight Range 16 Terrain Scan Density 10 Armor Coverage 150 Evasion (%) 55 Recoil Reduction 2 Item Schematics ----------------- None Robot Schematics ------------------ None Fabricated ------------ Nothing Repaired ---------- Nothing Studied --------- None Alien Tech Used ----------------- None Achievements -------------- None Challenges ------------ None Game ------ Seed ShockNullStabilizer Manual? 0 Play Time 00:08:49 Cumulative 53.5 hours Start 2026.04.12 @ 00:09:41 End 2026.04.12 @ 00:18:09 Sessions 1 Manual Loads 0 Difficulty Rogue Special Mode None Game No. 92 Rogue 92 Adventurer 0 Explorer 0 Win Type - Total 0 Types 0/0/0/0/0/0/0/0/0/0 Lore% 20 Gallery% 26 Achievement% 23 Wizard Run 0 Options --------- Layout 0 ASCII 0 Keyboard 0 Movement Mouse Keybinds 0 Fullscreen 1 Font 24/Smallcaps Map View 38x25 Zoom Use 98% Tactical HUD 1 Map Filters NONE Filters NONE Steam 1 RUN: 8fa7827d-4961-41bd-8dc5-4c2c914b1023